[Event "*** MasterClass Titled Tuesday Blitz"]
[Site "Chess.com"]
[Date "2017.10.03"]
[Round "8"]
[White "JSPrepz"]
[Black "Taron_Shagbazyan"]
[Result "1-0"]
[WhiteElo "2538"]
[BlackElo "2502"]
[TimeControl "180+2"]
[EndTime "14:50:07 PDT"]
[Termination "JSPrepz won by checkmate"]

1. e4 {[%clk 0:03:01.1]} 1... e5 {[%clk 0:03:00.8]} 2. Nf3 {[%clk 0:02:59.8]}
2... Nf6 {[%clk 0:03:01.7]} 3. Nc3 {[%clk 0:03:00]} 3... Nc6 {[%clk 0:03:02]} 4.
a3 {[%clk 0:03:01.3]} 4... a6 {[%clk 0:02:59.5]} 5. d4 {[%clk 0:03:01.6]} 5...
Bd6 {[%clk 0:02:52.5]} 6. Bg5 {[%clk 0:02:58.5]} 6... h6 {[%clk 0:02:38.1]} 7.
Bh4 {[%clk 0:02:53.2]} 7... g5 {[%clk 0:02:12.6]} 8. Bg3 {[%clk 0:02:52.3]} 8...
Qe7 {[%clk 0:02:13.4]} 9. dxe5 {[%clk 0:02:32.9]} 9... Bxe5 {[%clk 0:02:06.1]}
10. Nxe5 {[%clk 0:02:33.2]} 10... Nxe5 {[%clk 0:02:07.2]} 11. Be2 {[%clk
0:02:31.5]} 11... d6 {[%clk 0:02:07.9]} 12. Qd4 {[%clk 0:02:30.5]} 12... Bg4
{[%clk 0:02:02.3]} 13. f3 {[%clk 0:02:30.7]} 13... Bd7 {[%clk 0:02:00.1]} 14.
O-O-O {[%clk 0:02:30.6]} 14... Bc6 {[%clk 0:01:55]} 15. Rhe1 {[%clk 0:02:23.6]}
15... Nh5 {[%clk 0:01:47]} 16. Bf2 {[%clk 0:02:21.1]} 16... Nf4 {[%clk
0:01:46.8]} 17. Bf1 {[%clk 0:02:22.2]} 17... O-O {[%clk 0:01:36.7]} 18. Qe3
{[%clk 0:02:18.7]} 18... Qf6 {[%clk 0:01:27.2]} 19. g3 {[%clk 0:02:15.8]} 19...
Nfg6 {[%clk 0:01:24.8]} 20. Be2 {[%clk 0:02:14]} 20... Rfe8 {[%clk 0:01:25.6]}
21. Rf1 {[%clk 0:02:14.3]} 21... b5 {[%clk 0:01:19.5]} 22. Bg1 {[%clk
0:02:14.6]} 22... Nc4 {[%clk 0:01:18.1]} 23. Qd3 {[%clk 0:01:55.5]} 23... Rab8
{[%clk 0:01:10.2]} 24. f4 {[%clk 0:01:56]} 24... a5 {[%clk 0:00:58.3]} 25. Bd4
{[%clk 0:01:39.6]} 25... Qe7 {[%clk 0:00:58.1]} 26. e5 {[%clk 0:01:28]} 26...
dxe5 {[%clk 0:00:55.1]} 27. fxe5 {[%clk 0:01:29.6]} 27... Ngxe5 {[%clk
0:00:50.9]} 28. Qf5 {[%clk 0:01:29.6]} 28... b4 {[%clk 0:00:40.4]} 29. Bxc4
{[%clk 0:01:30.5]} 29... Nxc4 {[%clk 0:00:27.2]} 30. Nd5 {[%clk 0:01:25.5]}
30... Bxd5 {[%clk 0:00:26.3]} 31. Qxd5 {[%clk 0:01:27.4]} 31... Qe6 {[%clk
0:00:27.4]} 32. Qc5 {[%clk 0:01:17.1]} 32... bxa3 {[%clk 0:00:28.2]} 33. b3
{[%clk 0:01:17.5]} 33... Ne3 {[%clk 0:00:28.2]} 34. Rfe1 {[%clk 0:01:18.5]}
34... a2 {[%clk 0:00:26.2]} 35. Rd3 {[%clk 0:00:52.4]} 35... Qh3 {[%clk
0:00:20]} 36. Bb2 {[%clk 0:00:25.8]} 36... Nf5 {[%clk 0:00:18.6]} 37. Red1
{[%clk 0:00:21.3]} 37... Qg4 {[%clk 0:00:18.2]} 38. Qc3 {[%clk 0:00:22.3]} 38...
Kh7 {[%clk 0:00:19.2]} 39. h3 {[%clk 0:00:22.2]} 39... Qe4 {[%clk 0:00:19.8]}
40. Qf6 {[%clk 0:00:22.7]} 40... Qe6 {[%clk 0:00:20.6]} 41. Qc3 {[%clk
0:00:23.6]} 41... Kg6 {[%clk 0:00:21.2]} 42. g4 {[%clk 0:00:24.9]} 42... Nd6
{[%clk 0:00:22.8]} 43. Qg7# {[%clk 0:00:25.8]} 1-0

[Event "*** MasterClass Titled Tuesday Blitz"]
[Site "Chess.com"]
[Date "2017.10.03"]
[Round "8"]
[White "Tesla37"]
[Black "Incognito_Knight"]
[Result "1-0"]
[WhiteElo "2672"]
[BlackElo "2474"]
[TimeControl "180+2"]
[EndTime "14:50:23 PDT"]
[Termination "Tesla37 won by resignation"]

1. e4 {[%clk 0:03:01.9]} 1... c5 {[%clk 0:02:59.7]} 2. Nf3 {[%clk 0:03:01.4]}
2... e6 {[%clk 0:03:00.8]} 3. d4 {[%clk 0:03:01.7]} 3... cxd4 {[%clk 0:03:02.7]}
4. Nxd4 {[%clk 0:03:02.8]} 4... a6 {[%clk 0:03:04.1]} 5. Nc3 {[%clk 0:03:03.5]}
5... b5 {[%clk 0:03:03.5]} 6. Bd3 {[%clk 0:03:02.8]} 6... Qb6 {[%clk 0:03:04.1]}
7. Nf3 {[%clk 0:03:04]} 7... Qc7 {[%clk 0:03:04.8]} 8. O-O {[%clk 0:03:05]} 8...
Bb7 {[%clk 0:03:06.3]} 9. Re1 {[%clk 0:03:03.8]} 9... Be7 {[%clk 0:03:07.5]} 10.
e5 {[%clk 0:03:04.7]} 10... f5 {[%clk 0:03:08.3]} 11. Nh4 {[%clk 0:03:05.7]}
11... g6 {[%clk 0:03:08.8]} 12. Nf3 {[%clk 0:03:06.4]} 12... Nc6 {[%clk
0:03:10.4]} 13. a4 {[%clk 0:03:06]} 13... b4 {[%clk 0:03:09.6]} 14. Nb1 {[%clk
0:03:07.1]} 14... Bc5 {[%clk 0:03:05.3]} 15. Nbd2 {[%clk 0:03:05.2]} 15... Na5
{[%clk 0:03:02.4]} 16. Nb3 {[%clk 0:03:06.2]} 16... Nxb3 {[%clk 0:03:02.1]} 17.
cxb3 {[%clk 0:03:07.2]} 17... Ne7 {[%clk 0:03:00.3]} 18. Bh6 {[%clk 0:02:58]}
18... Qb6 {[%clk 0:02:56.6]} 19. Qe2 {[%clk 0:02:54.4]} 19... Rg8 {[%clk
0:02:48.6]} 20. a5 {[%clk 0:02:53.2]} 20... Qa7 {[%clk 0:02:47.7]} 21. Ng5
{[%clk 0:02:45.8]} 21... Nd5 {[%clk 0:02:34.4]} 22. Qd2 {[%clk 0:02:43.8]} 22...
O-O-O {[%clk 0:02:12.9]} 23. Nf7 {[%clk 0:02:24.8]} 23... Rde8 {[%clk
0:02:12.8]} 24. Bg5 {[%clk 0:02:06.1]} 24... Kb8 {[%clk 0:02:09.6]} 25. Rac1
{[%clk 0:02:04.2]} 25... Rc8 {[%clk 0:02:08.7]} 26. h4 {[%clk 0:01:59.9]} 26...
Rgf8 {[%clk 0:02:03.6]} 27. Nd6 {[%clk 0:01:56.5]} 27... Bxd6 {[%clk 0:02:04.6]}
28. exd6 {[%clk 0:01:57.5]} 28... Rxc1 {[%clk 0:01:51.8]} 29. Rxc1 {[%clk
0:01:56.4]} 29... Rc8 {[%clk 0:01:52.9]} 30. Rc4 {[%clk 0:01:57.3]} 30... Rc6
{[%clk 0:01:47.4]} 31. Be2 {[%clk 0:01:52.1]} 31... Rc5 {[%clk 0:01:41.1]} 32.
Bf3 {[%clk 0:01:48.1]} 32... Rxa5 {[%clk 0:01:39.5]} 33. Kh2 {[%clk 0:01:42.1]}
33... Qb6 {[%clk 0:01:37.8]} 34. Be7 {[%clk 0:01:34.4]} 34... Rc5 {[%clk
0:01:14.1]} 35. h5 {[%clk 0:01:30.2]} 35... Qc6 {[%clk 0:00:51.7]} 36. Qd4
{[%clk 0:01:20.3]} 36... Rxc4 {[%clk 0:00:25.6]} 37. bxc4 {[%clk 0:01:19.1]}
37... Qb6 {[%clk 0:00:26.2]} 38. Qh8+ {[%clk 0:01:19]} 38... Ka7 {[%clk
0:00:27.6]} 39. cxd5 {[%clk 0:01:20.5]} 39... Qxf2 {[%clk 0:00:27.7]} 40. Qe5
{[%clk 0:01:07.9]} 40... exd5 {[%clk 0:00:23.5]} 41. Bf6 {[%clk 0:01:03.5]}
41... gxh5 {[%clk 0:00:17.6]} 42. Qd4+ {[%clk 0:01:03.7]} 42... Qxd4 {[%clk
0:00:18.3]} 43. Bxd4+ {[%clk 0:01:04.9]} 43... Kb8 {[%clk 0:00:19.1]} 44. Kg3
{[%clk 0:01:06]} 44... a5 {[%clk 0:00:20.6]} 45. Kh4 {[%clk 0:01:05.3]} 45... a4
{[%clk 0:00:21.2]} 46. Kxh5 {[%clk 0:01:06.3]} 46... Bc6 {[%clk 0:00:19.3]} 47.
Kh6 {[%clk 0:01:05.9]} 47... Kb7 {[%clk 0:00:20.8]} 48. Kxh7 {[%clk 0:01:06.7]}
48... Ka6 {[%clk 0:00:22.7]} 49. Kg6 {[%clk 0:01:06.8]} 49... Kb5 {[%clk
0:00:24]} 50. Be2+ {[%clk 0:01:07.4]} 50... Ka5 {[%clk 0:00:25.1]} 51. Kxf5
{[%clk 0:01:08.5]} 51... Bb5 {[%clk 0:00:25.1]} 52. Bxb5 {[%clk 0:01:02.8]}
52... Kxb5 {[%clk 0:00:27]} 53. g4 {[%clk 0:01:03.6]} 53... Kc4 {[%clk
0:00:28.3]} 54. Ke5 {[%clk 0:01:04.7]} 1-0

[Event "*** MasterClass Titled Tuesday Blitz"]
[Site "Chess.com"]
[Date "2017.10.03"]
[Round "8"]
[White "ChessWarrior7197"]
[Black "mazetofonias"]
[Result "0-1"]
[WhiteElo "2632"]
[BlackElo "2506"]
[TimeControl "180+2"]
[EndTime "14:50:40 PDT"]
[Termination "mazetofonias won by resignation"]

1. e4 {[%clk 0:03:01.9]} 1... c5 {[%clk 0:03:01.4]} 2. Nf3 {[%clk 0:03:02.4]}
2... d6 {[%clk 0:03:02.7]} 3. Bb5+ {[%clk 0:03:01.8]} 3... Nd7 {[%clk
0:03:02.7]} 4. O-O {[%clk 0:03:02.1]} 4... a6 {[%clk 0:03:03.9]} 5. Bd3 {[%clk
0:03:03.2]} 5... Ngf6 {[%clk 0:03:04.6]} 6. c3 {[%clk 0:03:04.6]} 6... e6 {[%clk
0:03:06.1]} 7. Re1 {[%clk 0:03:04.7]} 7... Be7 {[%clk 0:03:07.1]} 8. Bc2 {[%clk
0:03:05.7]} 8... b5 {[%clk 0:03:08.6]} 9. d4 {[%clk 0:03:06.6]} 9... Bb7 {[%clk
0:03:06.4]} 10. Bf4 {[%clk 0:02:57.5]} 10... O-O {[%clk 0:03:06]} 11. Nbd2
{[%clk 0:02:58.4]} 11... Re8 {[%clk 0:03:05.3]} 12. a4 {[%clk 0:02:57.3]} 12...
Bf8 {[%clk 0:03:04.6]} 13. Qe2 {[%clk 0:02:56.6]} 13... e5 {[%clk 0:03:01.9]}
14. dxe5 {[%clk 0:02:55.8]} 14... dxe5 {[%clk 0:03:03.8]} 15. Bg5 {[%clk
0:02:55.9]} 15... c4 {[%clk 0:03:03.4]} 16. Nf1 {[%clk 0:02:54.8]} 16... h6
{[%clk 0:03:03.9]} 17. Bh4 {[%clk 0:02:49.5]} 17... Qc7 {[%clk 0:03:02.6]} 18.
Red1 {[%clk 0:02:45.4]} 18... Nh5 {[%clk 0:02:57.3]} 19. Ne3 {[%clk 0:02:40.2]}
19... Nf4 {[%clk 0:02:53.9]} 20. Qf1 {[%clk 0:02:38.3]} 20... Nc5 {[%clk
0:02:55.4]} 21. Nd2 {[%clk 0:02:32.4]} 21... Be7 {[%clk 0:02:47.8]} 22. Bxe7
{[%clk 0:02:29.6]} 22... Qxe7 {[%clk 0:02:49.7]} 23. f3 {[%clk 0:02:25.7]} 23...
Qg5 {[%clk 0:02:48.8]} 24. Kh1 {[%clk 0:02:23.9]} 24... Rad8 {[%clk 0:02:49.2]}
25. axb5 {[%clk 0:02:19.2]} 25... axb5 {[%clk 0:02:51.1]} 26. b4 {[%clk
0:02:19.9]} 26... Ncd3 {[%clk 0:02:49.9]} 27. g3 {[%clk 0:02:18]} 27... Nh3
{[%clk 0:02:46.8]} 28. Bxd3 {[%clk 0:01:46.8]} 28... Qxe3 {[%clk 0:02:27.4]} 29.
Qxh3 {[%clk 0:01:40.8]} 29... Rxd3 {[%clk 0:02:26.6]} 30. Qg2 {[%clk 0:01:27.2]}
30... Red8 {[%clk 0:02:25.7]} 31. Ra2 {[%clk 0:01:28.2]} 31... Rxc3 {[%clk
0:02:12.1]} 32. h4 {[%clk 0:01:24.8]} 32... Rcd3 {[%clk 0:02:13.3]} 33. Kh2
{[%clk 0:01:25.8]} 33... Qb6 {[%clk 0:02:01.2]} 34. Rc1 {[%clk 0:01:20.3]} 34...
Qe3 {[%clk 0:01:59.2]} 35. Rd1 {[%clk 0:01:19.4]} 35... Qd4 {[%clk 0:01:57.9]}
36. Rc2 {[%clk 0:01:13.4]} 36... Qd7 {[%clk 0:01:55.7]} 37. Nxc4 {[%clk
0:00:48.7]} 37... bxc4 {[%clk 0:01:54.8]} 38. Rdc1 {[%clk 0:00:48.3]} 38... Ba6
{[%clk 0:01:50.7]} 39. g4 {[%clk 0:00:44.5]} 39... Bb5 {[%clk 0:01:45.3]} 40. g5
{[%clk 0:00:45.2]} 40... hxg5 {[%clk 0:01:43.9]} 41. Qxg5 {[%clk 0:00:46.3]}
41... f6 {[%clk 0:01:39.9]} 42. Qg3 {[%clk 0:00:43.8]} 42... Qe7 {[%clk
0:01:33.9]} 43. Rg2 {[%clk 0:00:42.8]} 43... Rd2 {[%clk 0:01:34.3]} 44. Rg1
{[%clk 0:00:43.7]} 44... c3 {[%clk 0:01:33.9]} 45. h5 {[%clk 0:00:42.9]} 45...
Rxg2+ {[%clk 0:01:24.8]} 46. Kxg2 {[%clk 0:00:39.3]} 46... Rd2+ {[%clk
0:01:25.7]} 47. Kh1 {[%clk 0:00:40.3]} 47... Qf7 {[%clk 0:01:21.6]} 48. Qh3
{[%clk 0:00:38.4]} 48... Bd7 {[%clk 0:01:18.3]} 49. Qh4 {[%clk 0:00:35.2]} 49...
c2 {[%clk 0:01:15.5]} 50. h6 {[%clk 0:00:31.9]} 50... g5 {[%clk 0:01:10.6]} 51.
Rxg5+ {[%clk 0:00:22.2]} 51... Kh8 {[%clk 0:01:00.6]} 52. Rg8+ {[%clk
0:00:12.2]} 52... Kxg8 {[%clk 0:00:57.7]} 0-1

[Event "*** MasterClass Titled Tuesday Blitz"]
[Site "Chess.com"]
[Date "2017.10.03"]
[Round "8"]
[White "Kawhi_Leonard2"]
[Black "chessking2151"]
[Result "0-1"]
[WhiteElo "2234"]
[BlackElo "2387"]
[TimeControl "180+2"]
[EndTime "14:50:40 PDT"]
[Termination "chessking2151 won by resignation"]

1. e4 {[%clk 0:03:01.9]} 1... e5 {[%clk 0:02:58.7]} 2. Nf3 {[%clk 0:03:01.6]}
2... Nc6 {[%clk 0:02:59.6]} 3. Bc4 {[%clk 0:03:02.5]} 3... Nf6 {[%clk
0:03:00.4]} 4. d3 {[%clk 0:03:03.1]} 4... Be7 {[%clk 0:03:01]} 5. O-O {[%clk
0:03:03.9]} 5... O-O {[%clk 0:02:58.2]} 6. c3 {[%clk 0:03:01.1]} 6... d6 {[%clk
0:02:59.5]} 7. Re1 {[%clk 0:03:01.9]} 7... Na5 {[%clk 0:02:58.6]} 8. Bb5 {[%clk
0:03:02.8]} 8... a6 {[%clk 0:03:00.2]} 9. Ba4 {[%clk 0:03:04]} 9... b5 {[%clk
0:03:01.9]} 10. Bc2 {[%clk 0:03:05.1]} 10... c5 {[%clk 0:03:03.6]} 11. Nbd2
{[%clk 0:03:06.3]} 11... Re8 {[%clk 0:02:59.6]} 12. Nf1 {[%clk 0:03:07.8]} 12...
h6 {[%clk 0:02:59.8]} 13. Ne3 {[%clk 0:03:08.7]} 13... Nc6 {[%clk 0:02:58.7]}
14. h3 {[%clk 0:03:05.3]} 14... Be6 {[%clk 0:02:59.8]} 15. Bb3 {[%clk
0:03:04.4]} 15... Qd7 {[%clk 0:02:58.4]} 16. a4 {[%clk 0:03:03.7]} 16... b4
{[%clk 0:02:56.4]} 17. Nd5 {[%clk 0:02:58]} 17... Na5 {[%clk 0:02:35.9]} 18.
Nxf6+ {[%clk 0:02:41.2]} 18... Bxf6 {[%clk 0:02:35.4]} 19. Bd5 {[%clk
0:02:40.3]} 19... Bxd5 {[%clk 0:02:34.3]} 20. exd5 {[%clk 0:02:40.7]} 20... bxc3
{[%clk 0:02:35.9]} 21. bxc3 {[%clk 0:02:41.3]} 21... Reb8 {[%clk 0:02:37.5]} 22.
Nd2 {[%clk 0:02:25.8]} 22... Be7 {[%clk 0:02:19.2]} 23. Qc2 {[%clk 0:02:19.2]}
23... Qb7 {[%clk 0:02:14.7]} 24. Rb1 {[%clk 0:02:16.4]} 24... Qxd5 {[%clk
0:02:12.1]} 25. c4 {[%clk 0:02:08.9]} 25... Qe6 {[%clk 0:02:06.9]} 26. Ne4
{[%clk 0:02:07.1]} 26... Nc6 {[%clk 0:02:06.9]} 27. Be3 {[%clk 0:02:05.4]} 27...
Nb4 {[%clk 0:01:56.5]} 28. Qe2 {[%clk 0:02:03.1]} 28... Qd7 {[%clk 0:01:55]} 29.
a5 {[%clk 0:02:03.6]} 29... Bd8 {[%clk 0:01:49.4]} 30. Ra1 {[%clk 0:02:01.4]}
30... Nc6 {[%clk 0:01:42]} 31. Bd2 {[%clk 0:01:37]} 31... Nd4 {[%clk 0:01:40.8]}
32. Qh5 {[%clk 0:01:29.4]} 32... Nc2 {[%clk 0:01:34]} 33. Bxh6 {[%clk
0:01:24.2]} 33... Nxa1 {[%clk 0:01:26.2]} 34. Re3 {[%clk 0:01:19.1]} 34... g6
{[%clk 0:01:09.8]} 35. Rg3 {[%clk 0:01:18]} 35... Kh7 {[%clk 0:00:43.9]} 36.
Ng5+ {[%clk 0:00:40.2]} 36... Bxg5 {[%clk 0:00:40.8]} 37. Qxg5 {[%clk
0:00:41.3]} 37... Qf5 {[%clk 0:00:32.2]} 38. Qe3 {[%clk 0:00:36.9]} 38... Nc2
{[%clk 0:00:28]} 39. Qd2 {[%clk 0:00:36.3]} 39... Nd4 {[%clk 0:00:23]} 40. Bg5
{[%clk 0:00:30.4]} 40... Ne6 {[%clk 0:00:19]} 41. Be3 {[%clk 0:00:30.1]} 41...
Nf4 {[%clk 0:00:19.6]} 42. Qd1 {[%clk 0:00:18.1]} 42... Qxd3 {[%clk 0:00:14.6]}
43. Qg4 {[%clk 0:00:18.9]} 43... Qf5 {[%clk 0:00:13.7]} 44. Qf3 {[%clk
0:00:19.4]} 44... Nh5 {[%clk 0:00:11]} 45. Qxf5 {[%clk 0:00:18.5]} 45... gxf5
{[%clk 0:00:12.9]} 46. Rg5 {[%clk 0:00:19.4]} 46... Ng7 {[%clk 0:00:14.4]} 47.
Rxf5 {[%clk 0:00:20.6]} 47... Nxf5 {[%clk 0:00:15.6]} 48. Bg5 {[%clk 0:00:19.9]}
48... Nd4 {[%clk 0:00:16.9]} 49. Be7 {[%clk 0:00:20.5]} 49... Rb1+ {[%clk
0:00:18.8]} 50. Kh2 {[%clk 0:00:20.8]} 50... Nf5 {[%clk 0:00:20.7]} 51. Bf6
{[%clk 0:00:21.7]} 51... Kg6 {[%clk 0:00:22]} 0-1

[Event "*** MasterClass Titled Tuesday Blitz"]
[Site "Chess.com"]
[Date "2017.10.03"]
[Round "8"]
[White "bilelou"]
[Black "TregubovP"]
[Result "0-1"]
[WhiteElo "2416"]
[BlackElo "2511"]
[TimeControl "180+2"]
[EndTime "14:50:49 PDT"]
[Termination "TregubovP won by resignation"]

1. e4 {[%clk 0:02:58.6]} 1... c5 {[%clk 0:02:59.9]} 2. Nf3 {[%clk 0:02:59.4]}
2... e6 {[%clk 0:03:00.2]} 3. c4 {[%clk 0:02:53]} 3... Nc6 {[%clk 0:02:57.3]} 4.
Nc3 {[%clk 0:02:52.2]} 4... Nf6 {[%clk 0:02:48.9]} 5. Be2 {[%clk 0:02:39.3]}
5... d5 {[%clk 0:02:47.1]} 6. exd5 {[%clk 0:02:38.6]} 6... exd5 {[%clk
0:02:48.2]} 7. d4 {[%clk 0:02:37.1]} 7... cxd4 {[%clk 0:02:47.1]} 8. Nxd4 {[%clk
0:02:37.8]} 8... dxc4 {[%clk 0:02:47.4]} 9. Nxc6 {[%clk 0:02:37.9]} 9... Qxd1+
{[%clk 0:02:47.1]} 10. Nxd1 {[%clk 0:02:39]} 10... bxc6 {[%clk 0:02:46.2]} 11.
Bxc4 {[%clk 0:02:39.8]} 11... Bb4+ {[%clk 0:02:42]} 12. Bd2 {[%clk 0:02:36.9]}
12... Bxd2+ {[%clk 0:02:42.7]} 13. Kxd2 {[%clk 0:02:38.1]} 13... O-O {[%clk
0:02:41.9]} 14. Re1 {[%clk 0:02:38]} 14... Rd8+ {[%clk 0:02:40.4]} 15. Kc1
{[%clk 0:02:39.6]} 15... Bf5 {[%clk 0:02:20.9]} 16. f3 {[%clk 0:02:38]} 16...
Rd4 {[%clk 0:02:20.6]} 17. Ne3 {[%clk 0:02:31.8]} 17... Rad8 {[%clk 0:02:05.9]}
18. b3 {[%clk 0:02:15.5]} 18... Be6 {[%clk 0:01:19.9]} 19. Re2 {[%clk
0:02:13.9]} 19... Bxc4 {[%clk 0:01:18.7]} 20. Nxc4 {[%clk 0:02:15.8]} 20... Nd5
{[%clk 0:01:17.4]} 21. Kb2 {[%clk 0:02:16.3]} 21... Nf4 {[%clk 0:01:17.5]} 22.
Rc2 {[%clk 0:02:14.8]} 22... c5 {[%clk 0:01:11.1]} 23. Na5 {[%clk 0:02:07.3]}
23... Nd3+ {[%clk 0:01:01.3]} 24. Kc3 {[%clk 0:01:56.4]} 24... Nb4 {[%clk
0:01:01.9]} 25. Re2 {[%clk 0:01:56.1]} 25... Rd3+ {[%clk 0:00:59.6]} 26. Kc4
{[%clk 0:01:53.3]} 26... Rd2 {[%clk 0:00:50.2]} 27. Rae1 {[%clk 0:01:52.6]}
27... R2d4+ {[%clk 0:00:47.9]} 28. Kb5 {[%clk 0:01:50.2]} 28... Kf8 {[%clk
0:00:47.5]} 29. Nb7 {[%clk 0:01:37.7]} 29... Rb8 {[%clk 0:00:47.2]} 30. Kxc5
{[%clk 0:01:32.1]} 30... Rf4 {[%clk 0:00:48.2]} 31. Nd6 {[%clk 0:01:04.1]} 31...
Nd3+ {[%clk 0:00:48.3]} 32. Kc6 {[%clk 0:01:04.1]} 32... Nxe1 {[%clk 0:00:48.5]}
33. Rxe1 {[%clk 0:01:05]} 33... g6 {[%clk 0:00:40]} 34. Kc7 {[%clk 0:00:54.8]}
34... Rb6 {[%clk 0:00:40.9]} 35. Nc4 {[%clk 0:00:50.6]} 35... Ra6 {[%clk
0:00:41.1]} 36. a4 {[%clk 0:00:51.3]} 36... Rd4 {[%clk 0:00:35.2]} 37. Re3
{[%clk 0:00:45]} 37... Rf6 {[%clk 0:00:24.9]} 38. g3 {[%clk 0:00:44.3]} 38... h5
{[%clk 0:00:23.1]} 39. f4 {[%clk 0:00:44.7]} 39... Kg7 {[%clk 0:00:20.3]} 40.
Re8 {[%clk 0:00:44.3]} 40... Rd3 {[%clk 0:00:20.1]} 41. Rb8 {[%clk 0:00:44.8]}
41... Re6 {[%clk 0:00:19.1]} 42. Ne5 {[%clk 0:00:42]} 42... Rc3+ {[%clk
0:00:19.3]} 43. Kd7 {[%clk 0:00:42.7]} 43... Rb6 {[%clk 0:00:20.4]} 44. Rxb6
{[%clk 0:00:39.3]} 44... axb6 {[%clk 0:00:21.4]} 45. Nc4 {[%clk 0:00:37.5]}
45... Rxb3 {[%clk 0:00:21.8]} 46. Kc6 {[%clk 0:00:39.1]} 46... Rc3 {[%clk
0:00:19.4]} 47. Kb5 {[%clk 0:00:39.6]} 47... Rc2 {[%clk 0:00:20.6]} 48. h3
{[%clk 0:00:36.7]} 48... Rc3 {[%clk 0:00:20.3]} 49. g4 {[%clk 0:00:37.9]} 49...
h4 {[%clk 0:00:20.6]} 50. Nxb6 {[%clk 0:00:39.3]} 50... Rxh3 {[%clk 0:00:21.6]}
51. a5 {[%clk 0:00:40.9]} 51... Ra3 {[%clk 0:00:21.1]} 52. Na4 {[%clk
0:00:42.1]} 52... Rb3+ {[%clk 0:00:21.9]} 53. Kc4 {[%clk 0:00:42.5]} 53... Rb8
{[%clk 0:00:21.1]} 0-1

[Event "*** MasterClass Titled Tuesday Blitz"]
[Site "Chess.com"]
[Date "2017.10.03"]
[Round "8"]
[White "Margency"]
[Black "dtn70"]
[Result "1-0"]
[WhiteElo "2516"]
[BlackElo "2302"]
[TimeControl "180+2"]
[EndTime "14:50:55 PDT"]
[Termination "Margency won on time"]

1. e4 {[%clk 0:03:01.9]} 1... e5 {[%clk 0:02:59.1]} 2. Nf3 {[%clk 0:03:00.6]}
2... Nc6 {[%clk 0:02:59.7]} 3. Bb5 {[%clk 0:03:01.4]} 3... a6 {[%clk 0:03:00.5]}
4. Ba4 {[%clk 0:03:02.3]} 4... Nf6 {[%clk 0:03:01.1]} 5. O-O {[%clk 0:03:03.2]}
5... Be7 {[%clk 0:03:02]} 6. Re1 {[%clk 0:03:04]} 6... b5 {[%clk 0:03:03.6]} 7.
Bb3 {[%clk 0:03:05.2]} 7... O-O {[%clk 0:03:05.2]} 8. h3 {[%clk 0:03:05.3]} 8...
d6 {[%clk 0:03:01]} 9. c3 {[%clk 0:03:05.1]} 9... Bb7 {[%clk 0:03:00.2]} 10. d4
{[%clk 0:03:05.5]} 10... Re8 {[%clk 0:02:56.5]} 11. Nbd2 {[%clk 0:03:02.6]}
11... h6 {[%clk 0:02:56.9]} 12. Nf1 {[%clk 0:02:57.5]} 12... Bf8 {[%clk
0:02:56.2]} 13. Ng3 {[%clk 0:02:58.2]} 13... g6 {[%clk 0:02:56.7]} 14. Bc2
{[%clk 0:02:44.8]} 14... Bg7 {[%clk 0:02:56.4]} 15. b3 {[%clk 0:02:42.5]} 15...
exd4 {[%clk 0:02:48.3]} 16. cxd4 {[%clk 0:02:43]} 16... Nb4 {[%clk 0:02:49.2]}
17. Bb1 {[%clk 0:02:43.5]} 17... c5 {[%clk 0:02:50]} 18. Bb2 {[%clk 0:02:39.3]}
18... Nc6 {[%clk 0:02:29.1]} 19. d5 {[%clk 0:02:36.4]} 19... Nb8 {[%clk
0:02:09.3]} 20. a4 {[%clk 0:02:35.1]} 20... Nbd7 {[%clk 0:02:07.8]} 21. Bd3
{[%clk 0:02:32.5]} 21... Qb6 {[%clk 0:02:03.9]} 22. Qd2 {[%clk 0:02:25.6]} 22...
Rac8 {[%clk 0:02:00.4]} 23. Rec1 {[%clk 0:02:06.9]} 23... h5 {[%clk 0:01:54.6]}
24. axb5 {[%clk 0:02:02.3]} 24... axb5 {[%clk 0:01:54.6]} 25. Qa5 {[%clk
0:02:03.7]} 25... h4 {[%clk 0:01:49.6]} 26. Nxh4 {[%clk 0:02:00.3]} 26... Qxa5
{[%clk 0:01:29.4]} 27. Rxa5 {[%clk 0:02:00.7]} 27... b4 {[%clk 0:01:26.4]} 28.
Ra7 {[%clk 0:01:57.1]} 28... Rb8 {[%clk 0:01:20]} 29. Rb1 {[%clk 0:01:45.3]}
29... Ne5 {[%clk 0:01:19.8]} 30. Bxe5 {[%clk 0:01:41.4]} 30... Rxe5 {[%clk
0:01:20.1]} 31. Nf3 {[%clk 0:01:41.9]} 31... Ree8 {[%clk 0:01:19.8]} 32. Nd2
{[%clk 0:01:43.2]} 32... Nd7 {[%clk 0:01:15.5]} 33. Bb5 {[%clk 0:01:37.9]} 33...
Re7 {[%clk 0:01:08.3]} 34. Bxd7 {[%clk 0:01:34.5]} 34... Rxd7 {[%clk 0:01:09.2]}
35. Nc4 {[%clk 0:01:35.7]} 35... Rbd8 {[%clk 0:00:54.3]} 36. Ne2 {[%clk
0:01:25.4]} 36... Bc8 {[%clk 0:00:51.8]} 37. Rxd7 {[%clk 0:01:23]} 37... Rxd7
{[%clk 0:00:47.3]} 38. f3 {[%clk 0:01:23.9]} 38... Ra7 {[%clk 0:00:46.9]} 39.
Nxd6 {[%clk 0:01:21.4]} 39... Ra2 {[%clk 0:00:46.4]} 40. Nxc8 {[%clk 0:01:17.2]}
40... Rxe2 {[%clk 0:00:46.6]} 41. Nb6 {[%clk 0:01:12.2]} 41... f5 {[%clk
0:00:41.1]} 42. exf5 {[%clk 0:01:11]} 42... gxf5 {[%clk 0:00:41.9]} 43. d6
{[%clk 0:01:10.2]} 43... Rd2 {[%clk 0:00:38.9]} 44. Nc4 {[%clk 0:01:10.6]} 44...
Rd3 {[%clk 0:00:34]} 45. Kf2 {[%clk 0:01:11.5]} 45... Kf7 {[%clk 0:00:33.3]} 46.
Ke2 {[%clk 0:01:11.7]} 46... Rd5 {[%clk 0:00:31.7]} 47. Rd1 {[%clk 0:01:11.3]}
47... Bd4 {[%clk 0:00:25.8]} 48. g4 {[%clk 0:01:10.2]} 48... fxg4 {[%clk
0:00:24]} 49. hxg4 {[%clk 0:01:11.2]} 49... Rg5 {[%clk 0:00:21.2]} 50. Rh1
{[%clk 0:00:59.3]} 50... Rg7 {[%clk 0:00:16.4]} 51. Rh5 {[%clk 0:00:57.4]} 51...
Ke6 {[%clk 0:00:14.7]} 52. Kd3 {[%clk 0:00:57.6]} 52... Rf7 {[%clk 0:00:13.2]}
53. Ke4 {[%clk 0:00:58.5]} 53... Rf8 {[%clk 0:00:07.2]} 54. Rh7 {[%clk
0:00:58.2]} 54... Re8 {[%clk 0:00:05.5]} 55. f4 {[%clk 0:00:58.3]} 55... Kf6+
{[%clk 0:00:03.1]} 56. Kd5 {[%clk 0:00:58.6]} 56... Kg6 {[%clk 0:00:03.8]} 57.
Re7 {[%clk 0:00:58.6]} 1-0